[Event "1000GM Spring IM-D 2024"]
[Site "New York"]
[Date "2024.03.29"]
[Round "4.7"]
[White "Rohde, Michael"]
[Black "Ho, Carter"]
[Result "0-1"]
[ECO "A09"]
[WhiteElo "2318"]
[BlackElo "2108"]
[Annotator "RC"]
[PlyCount "78"]
[EventDate "2024.03.26"]
[EventType "tourn"]
[EventCountry "USA"]
[SourceTitle "playchess.com"]
[Source "ChessBase"]
[SourceQuality "1"]
[TimeControl "5400+30"]

1. Nf3 {[%emt 0:10:47]} d5 {[%emt 0:08:50]} 2. c4 {[%emt 0:00:14]} d4 {[%emt 0:00:11]} 3. a3 {[%emt 0:02:02]} c5 {[%emt 0:03:21]} 4. b4 {[%emt 0:00:44]} Nc6 {[%emt 0:15:55]} 5. b5 {[%emt 0:03:35]} Nb8 {[%emt 0:00:20]} 6. e3 {[%emt 0:00:24]} Bg4 {[%emt 0:06:36]} 7. h3 {[%emt 0:03:02]} Bh5 {[%emt 0:00:47]} 8. Bb2 {[%emt 0:03:28]} Nd7 {[%emt 0:07:37]} 9. exd4 {[%emt 0:03:22]} cxd4 {[%emt 0:00:13]} 10. g4 {[%emt 0:01:02]} Bg6 {[%emt 0:00:09]} 11. Bxd4 {[%emt 0:01:20]} f6 {[%emt 0:13:30]} 12. Nh4 {[%emt 0:09:13]} Bf7 {[%emt 0:05:57]} 13. Nc3 {[%emt 0:02:02]} e5 {[%emt 0:00:53]} 14. Be3 {[%emt 0:02:51]} Nc5 {[%emt 0:02:30]} 15. d3 {[%emt 0:04:12]} h5 {[%emt 0:04:56]} 16. Nf5 {[%emt 0:00:42]} hxg4 {[%emt 0:04:53]} 17. Nxg7+ {[%emt 0:01:25]} Bxg7 {[%emt 0:00:09]} 18. Bxc5 {[%emt 0:00:09]} f5 {[%emt 0:00:37]} 19. Qc2 {[%emt 0:03:50]} Qc7 {[%emt 0:01:07]} 20. Bb4 {[%emt 0:04:58]} O-O-O {[%emt 0:02:09]} 21. O-O-O {[%emt 0:02:57]} Ne7 {[%emt 0:08:53]} 22. Bg2 {[%emt 0:04:31]} gxh3 {[%emt 0:05:32]} 23. Bxh3 {[%emt 0:01:18]} Kb8 {[%emt 0:00:59]} 24. Bg2 {[%emt 0:07:27]} Ng6 {[%emt 0:01:33]} 25. Bd5 {[%emt 0:01:24]} Nf4 {[%emt 0:01:31]} 26. Rxh8 {[%emt 0:02:11]} Bxh8 {[%emt 0:00:17]} 27. b6 {[%emt 0:01:46]} Qd7 {[%emt 0:01:51]} 28. bxa7+ {[%emt 0:01:24]} Ka8 {[%emt 0:00:31]} 29. Bxf7 {[%emt 0:01:00]} Qxf7 {[%emt 0:00:18]} 30. Nb5 {[%emt 0:04:17]} Qd7 {[%emt 0:00:52]} 31. Bd6 {[%emt 0:02:59]} Rc8 {[%emt 0:00:56]} 32. Kb1 {[%emt 0:06:34]} Ne6 {[%emt 0:01:17]} 33. Re1 {[%emt 0:02:24]} e4 {[%emt 0:00:50]} 34. dxe4 {[%emt 0:00:42]} Nd4 {[%emt 0:00:13]} 35. Nxd4 {[%emt 0:06:43]} Qxd6 {[%emt 0:00:50]} 36. Nb3 {[%emt 0:00:41]} Qxa3 {[%emt 0:00:27]} 37. c5 {[%emt 0:00:20]} fxe4 {[%emt 0:00:21]} 38. Rxe4 {[%emt 0:00:27]} Rd8 {[%emt 0:00:12]} 39. Re1 {[%emt 0:00:29]} Rd3 {[%emt 0:00:22]} 0-1

[Event "1000GM Spring IM-D 2024"]
[Site "New York"]
[Date "2024.03.29"]
[Round "4.8"]
[White "Urhegyi, Marton"]
[Black "Gaw, Chloe"]
[Result "1-0"]
[ECO "B62"]
[WhiteElo "2258"]
[BlackElo "2092"]
[Annotator "RC"]
[PlyCount "117"]
[EventDate "2024.03.26"]
[EventType "tourn"]
[EventCountry "USA"]
[SourceTitle "playchess.com"]
[Source "ChessBase"]
[SourceQuality "1"]
[TimeControl "5400+30"]

1. e4 {[%emt 0:06:47]} c5 {[%emt 0:00:04]} 2. Nf3 {[%emt 0:00:09]} d6 {[%emt 0:00:03]} 3. d4 {[%emt 0:00:06]} cxd4 {[%emt 0:00:05]} 4. Nxd4 {[%emt 0:00:05]} Nf6 {[%emt 0:00:05]} 5. Nc3 {[%emt 0:00:07]} Nc6 {[%emt 0:00:04]} 6. Bg5 {[%emt 0:00:11]} e6 {[%emt 0:00:07]} 7. Qd3 {[%emt 0:00:27]} a6 {[%emt 0:02:31]} 8. Nxc6 {[%emt 0:02:38]} bxc6 {[%emt 0:00:03]} 9. O-O-O {[%emt 0:00:18]} Be7 {[%emt 1:31:58]} 10. Qg3 {[%emt 0:00:31]} e5 {[%emt 0:00:00]} 11. f4 {[%emt 0:01:21]} Nh5 {[%emt 0:00:00]} 12. Bxe7 {[%emt 0:12:44]} Qxe7 {[%emt 0:00:00]} 13. Qd3 {[%emt 0:01:38]} Bg4 {[%emt 0:00:00]} 14. Qxd6 {[%emt 0:02:50]} Qxd6 {[%emt 0:00:00]} 15. Rxd6 {[%emt 0:00:13]} Nxf4 {[%emt 0:00:00]} 16. Rxc6 {[%emt 0:01:01]} a5 {[%emt 0:00:00]} 17. Rc5 {[%emt 0:01:26]} f6 {[%emt 0:00:00]} 18. Bc4 {[%emt 0:03:01]} Rc8 {[%emt 0:00:00]} 19. Rxc8+ {[%emt 0:02:04]} Bxc8 {[%emt 0:00:00]} 20. g3 {[%emt 0:00:11]} Ne6 {[%emt 0:00:00]} 21. Rd1 {[%emt 0:03:14]} Nd4 {[%emt 0:00:00]} 22. Nb5 {[%emt 0:11:42]} Bg4 {[%emt 0:00:00]} 23. Rd3 {[%emt 0:01:59]} Nxb5 {[%emt 0:00:00]} 24. Bxb5+ {[%emt 0:00:07]} Ke7 {[%emt 0:07:30]} 25. Ra3 {[%emt 0:02:33]} Rd8 {[%emt 0:00:00]} 26. Bd3 {[%emt 0:00:29]} f5 {[%emt 0:00:00]} 27. Rxa5 {[%emt 0:00:28]} Kf6 {[%emt 0:00:00]} 28. Ra6+ {[%emt 0:04:12]} Kf7 {[%emt 0:00:00]} 29. Ra4 {[%emt 0:06:04]} g6 {[%emt 0:00:00]} 30. Kd2 {[%emt 0:01:49]} h5 {[%emt 0:00:00]} 31. Ke3 {[%emt 0:00:37]} h4 {[%emt 0:00:00]} 32. Ra7+ {[%emt 0:02:44]} Kf6 {[%emt 0:00:00]} 33. Ra6+ {[%emt 0:00:24]} Kg7 {[%emt 0:00:00]} 34. Ra7+ {[%emt 0:03:42]} Kf6 {[%emt 0:00:00]} 35. Rh7 {[%emt 0:02:32]} hxg3 {[%emt 0:00:00]} 36. hxg3 {[%emt 0:00:05]} Rf8 {[%emt 0:00:00]} 37. exf5 {[%emt 0:05:56]} gxf5 {[%emt 0:00:00]} 38. Be2 {[%emt 0:00:26]} f4+ {[%emt 0:00:52]} 39. gxf4 {[%emt 0:00:11]} exf4+ {[%emt 0:00:11]} 40. Kf2 {[%emt 0:00:45]} Bf5 {[%emt 0:00:53]} 41. Rc7 {[%emt 0:00:47]} Rh8 {[%emt 0:01:28]} 42. Kf3 {[%emt 0:06:09]} Kg5 {[%emt 0:00:26]} 43. Rc5 {[%emt 0:01:17]} Rh3+ {[%emt 0:00:45]} 44. Kg2 {[%emt 0:00:48]} Rg3+ {[%emt 0:00:27]} 45. Kf2 {[%emt 0:00:12]} Kf6 {[%emt 0:00:36]} 46. Bf3 {[%emt 0:02:51]} Rh3 {[%emt 0:00:46]} 47. Bg2 {[%emt 0:00:21]} Rh2 {[%emt 0:03:07]} 48. Kg1 {[%emt 0:00:17]} Rh8 {[%emt 0:00:36]} 49. a4 {[%emt 0:01:08]} Rd8 {[%emt 0:00:50]} 50. Bf3 {[%emt 0:01:08]} Rd4 {[%emt 0:01:24]} 51. b3 {[%emt 0:01:34]} Rd7 {[%emt 0:00:31]} 52. a5 {[%emt 0:00:23]} Rg7+ {[%emt 0:00:18]} 53. Kf2 {[%emt 0:00:15]} Ra7 {[%emt 0:00:16]} 54. b4 {[%emt 0:00:15]} Bd7 {[%emt 0:00:26]} 55. c4 {[%emt 0:01:11]} Ke7 {[%emt 0:00:16]} 56. Be4 {[%emt 0:00:49]} Bg4 {[%emt 0:00:25]} 57. Rg5 {[%emt 0:00:19]} Be6 {[%emt 0:00:11]} 58. Rg7+ {[%emt 0:00:10]} Bf7 {[%emt 0:00:02]} 59. Bd5 {[%emt 0:00:10]} 1-0

[Event "1000GM Spring IM-D 2024"]
[Site "New York"]
[Date "2024.03.29"]
[Round "4.9"]
[White "Ho, Cooper"]
[Black "Zaderman, Vitaly"]
[Result "1-0"]
[ECO "B43"]
[WhiteElo "2004"]
[BlackElo "2177"]
[Annotator "RC"]
[PlyCount "87"]
[EventDate "2024.03.26"]
[EventType "tourn"]
[EventCountry "USA"]
[SourceTitle "playchess.com"]
[Source "ChessBase"]
[SourceQuality "1"]
[TimeControl "5400+30"]

1. e4 {[%emt 1:31:00]} c5 {[%emt 0:00:12]} 2. Nf3 {[%emt 0:00:00]} e6 {[%emt 0:00:41]} 3. d4 {[%emt 0:00:00]} cxd4 {[%emt 0:00:10]} 4. Nxd4 {[%emt 0:00:00]} a6 {[%emt 0:00:18]} 5. Nc3 {[%emt 0:00:00]} Qc7 {[%emt 0:01:22]} 6. Qf3 {[%emt 0:00:00]} Nf6 {[%emt 0:00:16]} 7. Qg3 {[%emt 0:00:00]} d6 {[%emt 0:00:15]} 8. Bd3 {[%emt 0:00:00]} Nc6 {[%emt 0:00:32]} 9. Nxc6 {[%emt 0:00:00]} bxc6 {[%emt 0:00:33]} 10. O-O {[%emt 0:00:00]} g6 {[%emt 0:12:24]} 11. f4 {[%emt 0:00:00]} Bg7 {[%emt 0:02:47]} 12. f5 {[%emt 0:00:00]} e5 {[%emt 0:12:46]} 13. Qh4 {[%emt 0:00:00]} O-O {[%emt 0:02:01]} 14. Bg5 {[%emt 0:00:00]} Qe7 {[%emt 0:01:10]} 15. Rf3 {[%emt 0:00:00]} h6 {[%emt 0:02:17]} 16. Bxh6 {[%emt 0:00:00]} Bxh6 {[%emt 0:01:41]} 17. Qxh6 {[%emt 0:00:00]} Ng4 {[%emt 0:00:37]} 18. Qd2 {[%emt 0:00:00]} Kg7 {[%emt 0:03:52]} 19. h3 {[%emt 0:00:00]} Qa7+ {[%emt 0:00:18]} 20. Kh1 {[%emt 0:00:00]} Rh8 {[%emt 0:00:42]} 21. Raf1 {[%emt 0:00:00]} f6 {[%emt 0:01:55]} 22. Rg3 {[%emt 0:00:00]} Rh4 {[%emt 0:01:57]} 23. Qe2 {[%emt 0:00:00]} g5 {[%emt 0:07:45]} 24. Rxg4 {[%emt 0:00:00]} Rxg4 {[%emt 0:00:22]} 25. Qxg4 {[%emt 0:00:00]} Bd7 {[%emt 0:00:02]} 26. Qe2 {[%emt 0:00:00]} Rh8 {[%emt 0:00:17]} 27. Rf3 {[%emt 0:00:00]} a5 {[%emt 0:00:45]} 28. Bc4 {[%emt 0:00:00]} Rh4 {[%emt 0:00:26]} 29. Bb3 {[%emt 0:00:00]} d5 {[%emt 0:01:14]} 30. exd5 {[%emt 0:00:00]} a4 {[%emt 0:00:13]} 31. Bc4 {[%emt 0:00:23]} Qd4 {[%emt 0:00:24]} 32. b3 {[%emt 0:01:39]} e4 {[%emt 0:00:21]} 33. Rg3 {[%emt 0:01:25]} a3 {[%emt 0:00:41]} 34. Qe3 {[%emt 0:01:12]} c5 {[%emt 0:00:16]} 35. Qxd4 {[%emt 0:00:51]} cxd4 {[%emt 0:00:10]} 36. Ne2 {[%emt 0:00:23]} Bxf5 {[%emt 0:02:10]} 37. Nxd4 {[%emt 0:00:13]} Bd7 {[%emt 0:00:14]} 38. Nb5 {[%emt 0:01:25]} g4 {[%emt 0:01:26]} 39. Nxa3 {[%emt 0:11:29]} f5 {[%emt 0:00:10]} 40. Be2 {[%emt 0:00:00]} f4 {[%emt 0:00:11]} 41. Rxg4+ {[%emt 0:00:00]} Bxg4 {[%emt 0:00:11]} 42. Bxg4 {[%emt 0:00:00]} Rh6 {[%emt 0:02:49]} 43. Nc4 {[%emt 0:00:00]} Kf6 {[%emt 0:00:44]} 44. Kg1 {[%emt 0:00:00]} 1-0

[Event "1000GM Spring IM-D 2024"]
[Site "New York"]
[Date "2024.03.30"]
[Round "5.1"]
[White "Safranek, William"]
[Black "Fedorowicz, John"]
[Result "1-0"]
[ECO "B23"]
[WhiteElo "1950"]
[BlackElo "2372"]
[Annotator "RC"]
[PlyCount "49"]
[EventDate "2024.03.26"]
[EventType "tourn"]
[EventCountry "USA"]
[SourceTitle "playchess.com"]
[Source "ChessBase"]
[SourceQuality "1"]
[TimeControl "5400+30"]

1. e4 {[%emt 0:00:02]} c5 {[%emt 0:00:59]} 2. Nc3 {[%emt 0:00:06]} e6 {[%emt 0:00:35]} 3. d4 {[%emt 0:00:05]} cxd4 {[%emt 0:00:20]} 4. Qxd4 {[%emt 0:00:05]} Nc6 {[%emt 0:01:06]} 5. Qd3 {[%emt 0:00:06]} a6 {[%emt 0:00:47]} 6. Qg3 {[%emt 0:00:06]} b5 {[%emt 0:02:37]} 7. Bg5 {[%emt 0:00:07]} f6 {[%emt 0:10:51]} 8. Bf4 {[%emt 0:02:31]} d6 {[%emt 0:00:52]} 9. O-O-O {[%emt 0:02:58]} Ne5 {[%emt 0:00:44]} 10. Be3 {[%emt 0:08:42]} Qa5 {[%emt 0:05:59]} 11. f4 {[%emt 0:02:33]} b4 {[%emt 0:00:34]} 12. Nb1 {[%emt 0:00:18]} Nf7 {[%emt 0:05:58]} 13. Bc4 {[%emt 0:00:44]} f5 {[%emt 0:01:19]} 14. exf5 {[%emt 0:03:46]} Qxf5 {[%emt 0:00:08]} 15. Nf3 {[%emt 0:03:11]} Ngh6 {[%emt 0:06:21]} 16. Nd4 {[%emt 0:05:04]} Qg4 {[%emt 0:00:12]} 17. Qe1 {[%emt 0:00:05]} Be7 {[%emt 0:03:17]} 18. h3 {[%emt 0:02:02]} Qxg2 {[%emt 0:11:24]} 19. Nxe6 {[%emt 0:00:33]} Bb7 {[%emt 0:03:20]} 20. Rg1 {[%emt 0:01:33]} Qc6 {[%emt 0:01:17]} 21. Bd5 {[%emt 0:00:36]} Qc8 {[%emt 0:00:39]} 22. Nxg7+ {[%emt 0:00:09]} Kf8 {[%emt 0:00:23]} 23. Ne6+ {[%emt 0:03:32]} Ke8 {[%emt 0:00:07]} 24. Bb3 {[%emt 0:02:56]} a5 {[%emt 0:01:17]} 25. Bb6 {[%emt 0:00:16]} 1-0

[Event "1000GM Spring IM-D 2024"]
[Site "New York"]
[Date "2024.03.29"]
[Round "5.2"]
[White "Polyik, Peter"]
[Black "Yoo, Eugene"]
[Result "1/2-1/2"]
[ECO "B33"]
[WhiteElo "2295"]
[BlackElo "2205"]
[Annotator "RC"]
[PlyCount "30"]
[EventDate "2024.03.26"]
[EventType "tourn"]
[EventCountry "USA"]
[SourceTitle "playchess.com"]
[Source "ChessBase"]
[SourceQuality "1"]
[TimeControl "5400+30"]

1. e4 {[%emt 0:00:05]} c5 {[%emt 0:05:07]} 2. Nf3 {[%emt 0:00:05]} Nc6 {[%emt 0:00:03]} 3. d4 {[%emt 0:00:05]} cxd4 {[%emt 0:00:06]} 4. Nxd4 {[%emt 0:00:05]} Nf6 {[%emt 0:00:05]} 5. Nc3 {[%emt 0:00:04]} e5 {[%emt 0:00:14]} 6. Ndb5 {[%emt 0:00:06]} d6 {[%emt 0:00:05]} 7. Bg5 {[%emt 0:00:07]} a6 {[%emt 0:00:11]} 8. Na3 {[%emt 0:00:05]} b5 {[%emt 0:00:11]} 9. Nd5 {[%emt 0:00:06]} Qa5+ {[%emt 0:00:04]} 10. Bd2 {[%emt 0:00:04]} Qd8 {[%emt 0:00:04]} 11. Bg5 {[%emt 0:00:05]} Qa5+ {[%emt 0:00:03]} 12. Bd2 {[%emt 0:00:04]} Qd8 {[%emt 0:00:02]} 13. Bg5 {[%emt 0:00:05]} Qa5+ {[%emt 0:00:03]} 14. Bd2 {[%emt 0:00:08]} Qd8 {[%emt 0:00:04]} 15. Bg5 {[%emt 0:00:04]} Qa5+ {[%emt 0:00:02]} 1/2-1/2

[Event "1000GM Spring IM-D 2024"]
[Site "New York"]
[Date "2024.03.30"]
[Round "5.3"]
[White "Ho, Carter"]
[Black "Lapshun, Yury"]
[Result "0-1"]
[ECO "C55"]
[WhiteElo "2108"]
[BlackElo "2332"]
[Annotator "RC"]
[PlyCount "96"]
[EventDate "2024.03.26"]
[EventType "tourn"]
[EventCountry "USA"]
[SourceTitle "playchess.com"]
[Source "ChessBase"]
[SourceQuality "1"]
[TimeControl "5400+30"]

1. e4 {[%emt 0:00:37]} e5 {[%emt 0:16:25]} 2. Nf3 {[%emt 0:00:22]} Nc6 {[%emt 0:00:04]} 3. Bc4 {[%emt 0:00:10]} Nf6 {[%emt 0:00:57]} 4. d3 {[%emt 0:00:12]} Be7 {[%emt 0:01:42]} 5. O-O {[%emt 0:00:16]} O-O {[%emt 0:00:04]} 6. Re1 {[%emt 0:00:05]} d6 {[%emt 0:00:13]} 7. a4 {[%emt 0:00:56]} h6 {[%emt 0:01:51]} 8. Nbd2 {[%emt 0:02:10]} Be6 {[%emt 0:02:34]} 9. c3 {[%emt 0:03:35]} Qd7 {[%emt 0:00:50]} 10. b4 {[%emt 0:05:03]} a6 {[%emt 0:01:11]} 11. Qc2 {[%emt 0:04:28]} b5 {[%emt 0:06:32]} 12. Bb3 {[%emt 0:13:06]} Rfd8 {[%emt 0:02:02]} 13. d4 {[%emt 0:03:03]} exd4 {[%emt 0:03:29]} 14. Nxd4 {[%emt 0:00:55]} Nxd4 {[%emt 0:00:23]} 15. cxd4 {[%emt 0:00:06]} Bxb3 {[%emt 0:09:31]} 16. Qxb3 {[%emt 0:00:48]} a5 {[%emt 0:00:30]} 17. axb5 {[%emt 0:02:31]} axb4 {[%emt 0:01:46]} 18. Rxa8 {[%emt 0:05:47]} Rxa8 {[%emt 0:00:01]} 19. Qxb4 {[%emt 0:00:58]} Rb8 {[%emt 0:00:50]} 20. Qa4 {[%emt 0:07:41]} Qxb5 {[%emt 0:00:40]} 21. Qc2 {[%emt 0:11:25]} c6 {[%emt 0:10:38]} 22. e5 {[%emt 0:09:30]} dxe5 {[%emt 0:01:00]} 23. dxe5 {[%emt 0:00:08]} Nd5 {[%emt 0:00:59]} 24. e6 {[%emt 0:04:00]} Rf8 {[%emt 0:06:52]} 25. Nf3 {[%emt 0:02:17]} Nb4 {[%emt 0:01:03]} 26. Qe4 {[%emt 0:08:22]} f5 {[%emt 0:04:28]} 27. Qe2 {[%emt 0:00:41]} Qxe2 {[%emt 0:03:52]} 28. Rxe2 {[%emt 0:00:58]} Nd3 {[%emt 0:00:14]} 29. Rc2 {[%emt 0:02:07]} Rb8 {[%emt 0:04:20]} 30. Nd2 {[%emt 0:01:38]} Nxc1 {[%emt 0:00:40]} 31. Rxc1 {[%emt 0:00:04]} Bg5 {[%emt 0:01:55]} 32. Rb1 {[%emt 0:00:07]} Rxb1+ {[%emt 0:00:05]} 33. Nxb1 {[%emt 0:00:02]} Kf8 {[%emt 0:00:20]} 34. Kf1 {[%emt 0:02:04]} Ke7 {[%emt 0:00:01]} 35. Ke2 {[%emt 0:00:06]} Kxe6 {[%emt 0:00:05]} 36. Kd3 {[%emt 0:00:33]} Bd8 {[%emt 0:00:41]} 37. Nc3 {[%emt 0:01:51]} Bb6 {[%emt 0:00:05]} 38. f3 {[%emt 0:00:50]} Bg1 {[%emt 0:00:34]} 39. h3 {[%emt 0:02:14]} Bf2 {[%emt 0:01:00]} 40. Ne2 {[%emt 0:01:17]} Ke5 {[%emt 0:00:33]} 41. g4 {[%emt 0:02:48]} g6 {[%emt 0:00:22]} 42. gxf5 {[%emt 0:03:12]} Kxf5 {[%emt 0:00:53]} 43. f4 {[%emt 0:00:30]} h5 {[%emt 0:00:52]} 44. h4 {[%emt 0:00:46]} Bxh4 {[%emt 0:03:03]} 45. Ke3 {[%emt 0:00:04]} Kg4 {[%emt 0:02:03]} 46. Nd4 {[%emt 0:00:25]} c5 {[%emt 0:00:41]} 47. Nf3 {[%emt 0:00:08]} Bf6 {[%emt 0:00:27]} 48. Ke4 {[%emt 0:00:04]} h4 {[%emt 0:01:24]} 0-1

[Event "1000GM Spring IM-D 2024"]
[Site "New York"]
[Date "2024.03.30"]
[Round "5.4"]
[White "Cherukuri, Nitesh"]
[Black "Jakovljevic, Vlado"]
[Result "1/2-1/2"]
[ECO "B81"]
[WhiteElo "2000"]
[BlackElo "2356"]
[Annotator "RC"]
[PlyCount "112"]
[EventDate "2024.03.26"]
[EventType "tourn"]
[EventCountry "USA"]
[SourceTitle "playchess.com"]
[Source "ChessBase"]
[SourceQuality "1"]
[TimeControl "5400+30"]

1. e4 {[%emt 0:00:27]} c5 {[%emt 0:00:24]} 2. Nf3 {[%emt 0:00:08]} e6 {[%emt 0:00:18]} 3. d4 {[%emt 0:00:12]} cxd4 {[%emt 0:00:07]} 4. Nxd4 {[%emt 0:00:05]} Nf6 {[%emt 0:00:03]} 5. Nc3 {[%emt 0:00:09]} d6 {[%emt 0:00:05]} 6. g4 {[%emt 0:00:09]} h6 {[%emt 0:00:05]} 7. Rg1 {[%emt 0:01:14]} Nc6 {[%emt 0:02:02]} 8. Be3 {[%emt 0:00:41]} Be7 {[%emt 0:06:27]} 9. h4 {[%emt 0:02:08]} d5 {[%emt 0:02:16]} 10. exd5 {[%emt 0:03:27]} Nxd5 {[%emt 0:00:14]} 11. Nxd5 {[%emt 0:02:03]} Qxd5 {[%emt 0:07:29]} 12. g5 {[%emt 0:03:55]} hxg5 {[%emt 0:00:16]} 13. hxg5 {[%emt 0:00:49]} Bd7 {[%emt 0:13:53]} 14. Bg2 {[%emt 0:05:45]} Qa5+ {[%emt 0:00:36]} 15. c3 {[%emt 0:00:31]} Nxd4 {[%emt 0:24:01]} 16. Qxd4 {[%emt 0:01:29]} e5 {[%emt 0:00:18]} 17. Qd5 {[%emt 0:03:47]} Qxd5 {[%emt 0:00:11]} 18. Bxd5 {[%emt 0:00:02]} Bc6 {[%emt 0:00:16]} 19. O-O-O {[%emt 0:01:19]} a6 {[%emt 0:01:19]} 20. Bxc6+ {[%emt 0:05:15]} bxc6 {[%emt 0:05:46]} 21. Rg4 {[%emt 0:07:07]} Rh5 {[%emt 0:03:32]} 22. Re4 {[%emt 0:02:04]} f6 {[%emt 0:04:49]} 23. gxf6 {[%emt 0:02:17]} gxf6 {[%emt 0:00:44]} 24. Rc4 {[%emt 0:01:07]} Rc8 {[%emt 0:01:20]} 25. Ra4 {[%emt 0:00:20]} Ra8 {[%emt 0:01:10]} 26. Rc4 {[%emt 0:00:07]} Rc8 {[%emt 0:00:11]} 27. a4 {[%emt 0:09:57]} Rh7 {[%emt 0:15:05]} 28. b4 {[%emt 0:01:45]} Bf8 {[%emt 0:00:17]} 29. b5 {[%emt 0:05:09]} axb5 {[%emt 0:00:06]} 30. axb5 {[%emt 0:00:05]} Rb7 {[%emt 0:00:27]} 31. bxc6 {[%emt 0:03:01]} Rbc7 {[%emt 0:01:29]} 32. Bb6 {[%emt 0:02:47]} Rxc6 {[%emt 0:01:16]} 33. Rd8+ {[%emt 0:00:52]} Rxd8 {[%emt 0:00:05]} 34. Rxc6 {[%emt 0:00:05]} Rd6 {[%emt 0:01:43]} 35. Rc8+ {[%emt 0:00:34]} Kd7 {[%emt 0:00:07]} 36. Rxf8 {[%emt 0:00:43]} Rxb6 {[%emt 0:01:24]} 37. Kc2 {[%emt 0:01:14]} Ke6 {[%emt 0:00:39]} 38. c4 {[%emt 0:01:42]} Rb4 {[%emt 0:00:36]} 39. Rc8 {[%emt 0:01:08]} Kd7 {[%emt 0:01:17]} 40. Rc5 {[%emt 0:00:11]} Kd6 {[%emt 0:00:15]} 41. Rd5+ {[%emt 0:01:51]} Kc6 {[%emt 0:00:13]} 42. Kc3 {[%emt 0:00:04]} Rb1 {[%emt 0:00:59]} 43. Rd2 {[%emt 0:01:18]} Rf1 {[%emt 0:00:57]} 44. Kb4 {[%emt 0:00:14]} Rb1+ {[%emt 0:03:01]} 45. Kc3 {[%emt 0:00:07]} Rc1+ {[%emt 0:00:06]} 46. Kb4 {[%emt 0:00:12]} e4 {[%emt 0:00:15]} 47. Rd4 {[%emt 0:04:58]} f5 {[%emt 0:00:14]} 48. Rd2 {[%emt 0:01:40]} Re1 {[%emt 0:01:12]} 49. Kc3 {[%emt 0:00:50]} f4 {[%emt 0:01:35]} 50. Kd4 {[%emt 0:02:02]} f3 {[%emt 0:01:20]} 51. Ra2 {[%emt 0:01:23]} Re2 {[%emt 0:02:21]} 52. Ra6+ {[%emt 0:00:11]} Kd7 {[%emt 0:00:13]} 53. Rf6 {[%emt 0:26:20]} Rxf2 {[%emt 0:00:45]} 54. Kxe4 {[%emt 0:00:00]} Rc2 {[%emt 0:00:25]} 55. Kd5 {[%emt 0:00:00]} Rd2+ {[%emt 0:00:48]} 56. Ke4 {[%emt 0:00:00]} Rc2 {[%emt 0:00:08]} 1/2-1/2

[Event "1000GM Spring IM-D 2024"]
[Site "New York"]
[Date "2024.03.30"]
[Round "5.5"]
[White "Rohde, Michael"]
[Black "Shangin, Lev"]
[Result "1-0"]
[ECO "D27"]
[WhiteElo "2318"]
[BlackElo "1994"]
[Annotator "RC"]
[PlyCount "79"]
[EventDate "2024.03.26"]
[EventType "tourn"]
[EventCountry "USA"]
[SourceTitle "playchess.com"]
[Source "ChessBase"]
[SourceQuality "1"]
[TimeControl "5400+30"]

1. Nf3 {[%emt 0:32:42]} Nf6 {[%emt 0:00:35]} 2. c4 {[%emt 0:00:04]} e6 {[%emt 0:00:20]} 3. Nc3 {[%emt 0:00:06]} d5 {[%emt 0:00:26]} 4. d4 {[%emt 0:00:04]} dxc4 {[%emt 0:00:37]} 5. e3 {[%emt 0:00:15]} a6 {[%emt 0:00:33]} 6. a4 {[%emt 0:00:41]} c5 {[%emt 0:00:38]} 7. Bxc4 {[%emt 0:00:07]} Nc6 {[%emt 0:00:45]} 8. O-O {[%emt 0:00:09]} Be7 {[%emt 0:00:37]} 9. d5 {[%emt 0:13:46]} exd5 {[%emt 0:03:53]} 10. Nxd5 {[%emt 0:00:06]} O-O {[%emt 0:03:10]} 11. Nxe7+ {[%emt 0:14:15]} Qxe7 {[%emt 0:00:35]} 12. b3 {[%emt 0:01:50]} Ne5 {[%emt 0:06:06]} 13. Nxe5 {[%emt 0:01:17]} Qxe5 {[%emt 0:00:06]} 14. Ra2 {[%emt 0:00:25]} Ng4 {[%emt 0:04:25]} 15. f4 {[%emt 0:00:30]} Qe7 {[%emt 0:01:33]} 16. e4 {[%emt 0:08:50]} Qxe4 {[%emt 0:09:08]} 17. Re2 {[%emt 0:01:36]} Qd4+ {[%emt 0:08:57]} 18. Qxd4 {[%emt 0:01:01]} cxd4 {[%emt 0:00:02]} 19. Rd1 {[%emt 0:01:05]} Ne3 {[%emt 0:05:05]} 20. Bxe3 {[%emt 0:00:55]} dxe3 {[%emt 0:00:07]} 21. Rxe3 {[%emt 0:00:18]} Bg4 {[%emt 0:02:30]} 22. Rde1 {[%emt 0:03:42]} Rad8 {[%emt 0:04:31]} 23. Re7 {[%emt 0:01:04]} Bd7 {[%emt 0:00:45]} 24. Rd1 {[%emt 0:03:02]} b5 {[%emt 0:02:07]} 25. axb5 {[%emt 0:04:48]} axb5 {[%emt 0:00:23]} 26. Rexd7 {[%emt 0:00:21]} Rxd7 {[%emt 0:00:06]} 27. Rxd7 {[%emt 0:00:05]} bxc4 {[%emt 0:00:04]} 28. bxc4 {[%emt 0:00:04]} f6 {[%emt 0:02:16]} 29. Rc7 {[%emt 0:03:06]} Ra8 {[%emt 0:03:47]} 30. Kf2 {[%emt 0:02:26]} Ra2+ {[%emt 0:03:41]} 31. Kf3 {[%emt 0:00:16]} f5 {[%emt 0:03:32]} 32. c5 {[%emt 0:00:36]} h6 {[%emt 0:04:18]} 33. c6 {[%emt 0:01:08]} Kh7 {[%emt 0:03:35]} 34. Rd7 {[%emt 0:02:22]} Rc2 {[%emt 0:02:06]} 35. c7 {[%emt 0:00:10]} Kg6 {[%emt 0:01:21]} 36. Ke3 {[%emt 0:00:33]} Kf6 {[%emt 0:01:28]} 37. Kd3 {[%emt 0:00:41]} Rc1 {[%emt 0:00:41]} 38. Kd4 {[%emt 0:01:03]} g5 {[%emt 0:01:01]} 39. Kd5 {[%emt 0:01:18]} gxf4 {[%emt 0:01:42]} 40. Rd6+ {[%emt 0:00:45]} 1-0